[Event "MČR v rapid šachu družstev 2019"]
[Site "Teplice, Czech Republic"]
[Date "2019.09.15"]
[Round "7.4"]
[White "Vymazal, Bronislav"]
[Black "Benes, Petr"]
[Result "1-0"]
[TimeControl "15 min. + 5s"]
[WhiteElo "2347"]
[BlackElo "2147"]

1. e4 {[%clk 00:15:07]} {[%emt 00:00:02]} Nc6 {[%clk 00:15:03]} {[%emt
00:00:07]} 2. Nf3 {[%clk 00:15:11]} {[%emt 00:00:02]} d6 {[%clk 00:15:02]}
{[%emt 00:00:06]} 3. d4 {[%clk 00:15:07]} {[%emt 00:00:09]} Nf6 {[%clk
00:15:03]} {[%emt 00:00:05]} 4. Bd3 {[%clk 00:13:45]} {[%emt 00:01:27]} e5
{[%clk 00:14:42]} {[%emt 00:00:25]} 5. c3 {[%clk 00:13:48]} {[%emt 00:00:03]}
Be7 {[%clk 00:14:09]} {[%emt 00:00:38]} 6. O-O {[%clk 00:13:23]} {[%emt
00:00:29]} O-O {[%clk 00:14:04]} {[%emt 00:00:10]} 7. h3 {[%clk 00:12:50]}
{[%emt 00:00:38]} Re8 {[%clk 00:13:13]} {[%emt 00:00:56]} 8. d5 {[%clk
00:12:46]} {[%emt 00:00:09]} Nb8 {[%clk 00:13:10]} {[%emt 00:00:08]} 9. c4
{[%clk 00:12:50]} {[%emt 00:00:01]} Nbd7 {[%clk 00:12:09]} {[%emt 00:01:06]} 10.
Nc3 {[%clk 00:12:53]} {[%emt 00:00:02]} Nc5 {[%clk 00:11:52]} {[%emt 00:00:22]}
11. Bc2 {[%clk 00:12:56]} {[%emt 00:00:02]} a5 {[%clk 00:11:56]} {[%emt
00:00:02]} 12. Be3 {[%clk 00:12:55]} {[%emt 00:00:07]} b6 {[%clk 00:10:11]}
{[%emt 00:01:50]} 13. a3 {[%clk 00:12:38]} {[%emt 00:00:21]} Bf8 {[%clk
00:08:59]} {[%emt 00:01:17]} 14. b4 {[%clk 00:12:33]} {[%emt 00:00:11]} Ncd7
{[%clk 00:08:58]} {[%emt 00:00:07]} 15. Ba4 {[%clk 00:12:21]} {[%emt 00:00:16]}
Ba6 {[%clk 00:08:38]} {[%emt 00:00:25]} 16. Nd2 {[%clk 00:11:47]} {[%emt
00:00:39]} Re7 {[%clk 00:08:00]} {[%emt 00:00:43]} 17. Bc6 {[%clk 00:11:47]}
{[%emt 00:00:05]} Rb8 {[%clk 00:07:52]} {[%emt 00:00:13]} 18. Qa4 {[%clk
00:11:26]} {[%emt 00:00:26]} axb4 {[%clk 00:07:34]} {[%emt 00:00:24]} 19. axb4
{[%clk 00:11:29]} {[%emt 00:00:02]} Bb7 {[%clk 00:07:29]} {[%emt 00:00:09]} 20.
Qa7 {[%clk 00:11:16]} {[%emt 00:00:18]} Qc8 {[%clk 00:07:27]} {[%emt 00:00:08]}
21. Nb5 {[%clk 00:11:04]} {[%emt 00:00:16]} Ne8 {[%clk 00:07:01]} {[%emt
00:00:31]} 22. Bxb7 {[%clk 00:07:05]} {[%emt 00:04:04]} Rxb7 {[%clk 00:06:57]}
{[%emt 00:00:09]} 23. Qa8 {[%clk 00:05:55]} {[%emt 00:01:15]} Rb8 {[%clk
00:06:28]} {[%emt 00:00:34]} 24. Qa6 {[%clk 00:05:52]} {[%emt 00:00:08]} Qxa6
{[%clk 00:02:48]} {[%emt 00:03:46]} 25. Rxa6 {[%clk 00:05:54]} {[%emt
00:00:02]} Rb7 {[%clk 00:02:48]} {[%emt 00:00:05]} 26. Rfa1 {[%clk 00:05:33]}
{[%emt 00:00:27]} Nb8 {[%clk 00:02:29]} {[%emt 00:00:24]} 27. Ra7 {[%clk
00:04:01]} {[%emt 00:01:36]} c5 {[%clk 00:02:20]} {[%emt 00:00:15]} 28. Rxb7
{[%clk 00:02:09]} {[%emt 00:01:57]} Rxb7 {[%clk 00:02:21]} {[%emt 00:00:04]} 29.
bxc5 {[%clk 00:02:12]} {[%emt 00:00:02]} bxc5 {[%clk 00:02:03]} {[%emt
00:00:23]} 30. Ra8 {[%clk 00:02:14]} {[%emt 00:00:02]} f6 {[%clk 00:01:15]}
{[%emt 00:00:48]} 31. Nb3 {[%clk 00:02:15]} {[%emt 00:00:04]} Kf7 {[%clk
00:01:14]} {[%emt 00:00:11]} 32. Na5 {[%clk 00:01:41]} {[%emt 00:00:39]} Rb6
{[%clk 00:01:18]} {[%emt 00:00:02]} 33. Ra7+ {[%clk 00:01:40]} {[%emt
00:00:05]} Be7 {[%clk 00:00:55]} {[%emt 00:00:28]} 34. Bd2 {[%clk 00:01:37]}
{[%emt 00:00:08]} Kf8 {[%clk 00:00:37]} {[%emt 00:00:24]} 35. Nb3 {[%clk
00:01:00]} {[%emt 00:00:42]} Nc7 {[%clk 00:00:21]} {[%emt 00:00:21]} 36. Rxc7
{[%clk 00:00:57]} {[%emt 00:00:06]} Na6 {[%clk 00:00:22]} {[%emt 00:00:05]} 37.
Rc8+ {[%clk 00:00:29]} {[%emt 00:00:34]} Kf7 {[%emt 00:00:02]} 38. Na5 {[%clk
00:00:25]} {[%emt 00:00:07]} Nb4 {[%clk 00:00:26]} {[%emt 00:00:06]} 39. Nc6
{[%clk 00:00:24]} {[%emt 00:00:06]} Nxc6 {[%clk 00:00:12]} {[%emt 00:00:19]} 40.
dxc6 {[%clk 00:00:26]} {[%emt 00:00:02]} Ke6 {[%clk 00:00:14]} {[%emt
00:00:03]} 41. Ba5 {[%clk 00:00:24]} {[%emt 00:00:07]} Ra6 {[%clk 00:00:18]}
{[%emt 00:00:02]} 42. Nc7+ {[%emt 00:00:18]} Kf7 {[%emt 00:00:02]} 43. Nb5 Rb6
{[%emt 00:00:03]} 1-0

[Event "MČR v rapid šachu družstev 2019"]
[Site "Teplice, Czech Republic"]
[Date "2019.09.15"]
[Round "7.5"]
[White "Krejci, Jan"]
[Black "Bernasek, Jan"]
[Result "1/2-1/2"]
[TimeControl "15 min. + 5s"]
[WhiteElo "2496"]
[BlackElo "2496"]

1. d4 {[%clk 00:15:08]} Nf6 {[%clk 00:15:09]} {[%emt 00:00:01]} 2. Nf3 {[%clk
00:15:12]} {[%emt 00:00:01]} e6 {[%clk 00:15:12]} {[%emt 00:00:02]} 3. c4
{[%clk 00:15:14]} {[%emt 00:00:03]} b6 {[%clk 00:15:13]} {[%emt 00:00:04]} 4.
g3 {[%clk 00:15:15]} {[%emt 00:00:04]} Ba6 {[%clk 00:15:16]} {[%emt 00:00:02]}
5. Qa4 {[%clk 00:15:16]} {[%emt 00:00:04]} Bb7 {[%clk 00:15:12]} {[%emt
00:00:09]} 6. Bg2 {[%clk 00:15:19]} {[%emt 00:00:02]} c5 {[%clk 00:15:15]}
{[%emt 00:00:02]} 7. O-O {[%clk 00:14:35]} {[%emt 00:00:50]} Be7 {[%clk
00:15:12]} {[%emt 00:00:07]} 8. Nc3 {[%clk 00:13:52]} {[%emt 00:00:47]} Qc8
{[%clk 00:14:44]} {[%emt 00:00:33]} 9. dxc5 {[%clk 00:13:25]} {[%emt 00:00:33]}
bxc5 {[%clk 00:14:46]} {[%emt 00:00:02]} 10. Bf4 {[%clk 00:13:07]} {[%emt
00:00:22]} Bc6 {[%clk 00:13:58]} {[%emt 00:00:54]} 11. Qc2 {[%clk 00:12:53]}
{[%emt 00:00:20]} O-O {[%clk 00:12:51]} {[%emt 00:01:12]} 12. Rad1 {[%clk
00:12:43]} {[%emt 00:00:15]} Na6 {[%clk 00:11:50]} {[%emt 00:01:06]} 13. a3
{[%clk 00:12:40]} {[%emt 00:00:08]} Rd8 {[%clk 00:11:36]} {[%emt 00:00:19]} 14.
Bd6 {[%clk 00:11:34]} {[%emt 00:01:11]} Bxd6 {[%clk 00:11:31]} {[%emt
00:00:10]} 15. Rxd6 {[%clk 00:11:38]} {[%emt 00:00:01]} Rb8 {[%clk 00:11:05]}
{[%emt 00:00:32]} 16. Rfd1 {[%clk 00:11:30]} {[%emt 00:00:13]} Qb7 {[%clk
00:11:05]} {[%emt 00:00:05]} 17. Bf1 {[%clk 00:08:52]} {[%emt 00:02:43]} Ne8
{[%clk 00:10:29]} {[%emt 00:00:41]} 18. R6d2 {[%clk 00:08:33]} {[%emt
00:00:23]} d6 {[%clk 00:10:17]} {[%emt 00:00:17]} 19. Ng5 {[%clk 00:08:36]}
{[%emt 00:00:02]} g6 {[%clk 00:10:15]} {[%emt 00:00:07]} 20. Nge4 {[%clk
00:07:39]} {[%emt 00:01:02]} d5 {[%clk 00:10:05]} {[%emt 00:00:15]} 21. cxd5
{[%clk 00:06:46]} {[%emt 00:00:58]} exd5 {[%clk 00:10:08]} {[%emt 00:00:02]} 22.
Bg2 {[%clk 00:06:34]} {[%emt 00:00:16]} Rd7 {[%clk 00:07:49]} {[%emt 00:02:23]}
23. Ng5 {[%clk 00:05:21]} {[%emt 00:01:18]} Rbd8 {[%clk 00:07:27]} {[%emt
00:00:27]} 24. Na4 {[%clk 00:04:27]} {[%emt 00:00:59]} Qb5 {[%clk 00:07:19]}
{[%emt 00:00:13]} 25. b3 {[%clk 00:04:19]} {[%emt 00:00:13]} c4 {[%clk
00:07:04]} {[%emt 00:00:20]} 26. Nc3 {[%clk 00:03:33]} {[%emt 00:00:51]} Qxb3
{[%clk 00:06:59]} {[%emt 00:00:10]} 27. Qxb3 {[%clk 00:03:33]} {[%emt
00:00:05]} cxb3 {[%clk 00:07:02]} {[%emt 00:00:02]} 28. Nxd5 {[%clk 00:03:34]}
{[%emt 00:00:04]} h6 {[%clk 00:06:42]} {[%emt 00:00:25]} 29. Nh3 {[%clk
00:03:03]} {[%emt 00:00:36]} b2 {[%clk 00:06:15]} {[%emt 00:00:32]} 30. e4
{[%clk 00:02:35]} {[%emt 00:00:33]} Rb8 {[%clk 00:03:33]} {[%emt 00:02:47]} 31.
Rb1 {[%clk 00:02:38]} {[%emt 00:00:03]} Nac7 {[%clk 00:03:18]} {[%emt
00:00:20]} 32. Rdxb2 {[%clk 00:02:11]} {[%emt 00:00:32]} Rxb2 {[%clk 00:03:20]}
{[%emt 00:00:03]} 33. Rxb2 {[%clk 00:02:14]} {[%emt 00:00:02]} Nxd5 {[%clk
00:03:23]} {[%emt 00:00:02]} 34. exd5 {[%clk 00:02:16]} {[%emt 00:00:03]} Bxd5
{[%clk 00:03:18]} {[%emt 00:00:10]} 1/2-1/2

[Event "MČR v rapid šachu družstev 2019"]
[Site "Teplice, Czech Republic"]
[Date "2019.09.15"]
[Round "7.6"]
[White "Cernousek, Lukas"]
[Black "Sorm, Daniel"]
[Result "1-0"]
[TimeControl "15 min. + 5s"]
[WhiteElo "2478"]
[BlackElo "2313"]

1. Nf3 {[%clk 00:15:09]} {[%emt 00:00:01]} d5 {[%clk 00:15:08]} {[%emt
00:00:02]} 2. e3 {[%clk 00:15:13]} {[%emt 00:00:01]} c6 {[%clk 00:15:00]}
{[%emt 00:00:13]} 3. c4 {[%clk 00:15:14]} {[%emt 00:00:04]} e6 {[%clk
00:14:34]} {[%emt 00:00:32]} 4. b3 {[%clk 00:14:59]} {[%emt 00:00:20]} Bd6
{[%clk 00:14:30]} {[%emt 00:00:09]} 5. d4 {[%clk 00:14:55]} {[%emt 00:00:10]}
f5 {[%clk 00:14:27]} {[%emt 00:00:07]} 6. Bd3 {[%clk 00:14:51]} {[%emt
00:00:09]} Nf6 {[%clk 00:14:07]} {[%emt 00:00:26]} 7. O-O {[%clk 00:14:54]}
{[%emt 00:00:01]} Qe7 {[%clk 00:14:01]} {[%emt 00:00:10]} 8. Bb2 {[%clk
00:14:58]} O-O {[%clk 00:14:03]} {[%emt 00:00:05]} 9. Nc3 {[%clk 00:14:27]}
{[%emt 00:00:36]} Ne4 {[%clk 00:13:29]} {[%emt 00:00:39]} 10. Ne2 {[%clk
00:14:31]} {[%emt 00:00:01]} b6 {[%clk 00:13:17]} {[%emt 00:00:17]} 11. Ne5
{[%clk 00:14:33]} {[%emt 00:00:03]} Bb7 {[%clk 00:12:58]} {[%emt 00:00:24]} 12.
Rc1 {[%clk 00:13:42]} {[%emt 00:00:57]} c5 {[%clk 00:12:41]} {[%emt 00:00:21]}
13. Nf4 {[%clk 00:12:46]} {[%emt 00:01:01]} Nd7 {[%clk 00:11:01]} {[%emt
00:01:44]} 14. Nxd7 {[%clk 00:07:10]} {[%emt 00:05:41]} Qxd7 {[%clk 00:10:58]}
{[%emt 00:00:08]} 15. cxd5 {[%clk 00:07:13]} {[%emt 00:00:02]} exd5 {[%clk
00:10:02]} {[%emt 00:01:01]} 16. Nh5 {[%clk 00:06:19]} {[%emt 00:01:00]} Rf7
{[%clk 00:08:29]} {[%emt 00:01:37]} 17. dxc5 {[%clk 00:05:58]} {[%emt
00:00:26]} bxc5 {[%clk 00:08:06]} {[%emt 00:00:27]} 18. Bxe4 {[%clk 00:03:02]}
{[%emt 00:03:01]} dxe4 {[%clk 00:06:29]} {[%emt 00:01:43]} 19. Bxg7 {[%clk
00:02:32]} {[%emt 00:00:36]} Qc7 {[%clk 00:06:31]} {[%emt 00:00:02]} 20. Bd4
{[%clk 00:02:06]} {[%emt 00:00:31]} Ba6 {[%clk 00:05:34]} {[%emt 00:01:02]} 21.
Nf6+ {[%clk 00:00:49]} {[%emt 00:01:22]} Kf8 {[%clk 00:05:23]} {[%emt
00:00:16]} 22. Qh5 {[%clk 00:00:52]} {[%emt 00:00:02]} Bxf1 {[%clk 00:03:28]}
{[%emt 00:02:01]} 23. Qh6+ {[%clk 00:00:56]} Rg7 {[%clk 00:03:27]} {[%emt
00:00:06]} 24. Nxh7+ {[%clk 00:00:59]} {[%emt 00:00:02]} Kg8 {[%clk 00:02:50]}
{[%emt 00:00:42]} 25. Nf6+ {[%clk 00:01:03]} {[%emt 00:00:01]} Kf7 {[%clk
00:02:54]} {[%emt 00:00:01]} 26. Nd5 {[%clk 00:00:53]} {[%emt 00:00:15]} cxd4
{[%clk 00:01:03]} {[%emt 00:01:56]} 27. Nxc7 {[%clk 00:00:53]} {[%emt
00:00:05]} Bxg2 {[%clk 00:00:31]} {[%emt 00:00:36]} 28. Qxg7+ {[%clk 00:00:13]}
{[%emt 00:00:45]} Kxg7 {[%clk 00:00:34]} {[%emt 00:00:02]} 29. Nxa8 {[%clk
00:00:16]} {[%emt 00:00:02]} Bf3 {[%clk 00:00:13]} {[%emt 00:00:26]} 30. exd4
{[%clk 00:00:18]} {[%emt 00:00:02]} Bf4 {[%clk 00:00:12]} {[%emt 00:00:07]} 31.
Rc8 {[%clk 00:00:10]} {[%emt 00:00:13]} Bg4 {[%clk 00:00:07]} {[%emt 00:00:10]}
32. Nc7 {[%clk 00:00:09]} {[%emt 00:00:06]} e3 {[%clk 00:00:09]} {[%emt
00:00:04]} 33. Ne6+ {[%clk 00:00:12]} {[%emt 00:00:03]} Kf6 {[%clk 00:00:11]}
{[%emt 00:00:02]} 34. Nxf4 {[%clk 00:00:15]} {[%emt 00:00:02]} e2 {[%clk
00:00:14]} {[%emt 00:00:02]} 35. Nxe2 {[%clk 00:00:17]} {[%emt 00:00:03]} 1-0

[Event "MČR v rapid šachu družstev 2019"]
[Site "Teplice, Czech Republic"]
[Date "2019.09.15"]
[Round "7.7"]
[White "Strasil, Pavel"]
[Black "Vrbata, Zbynek"]
[Result "0-1"]
[TimeControl "15 min. + 5s"]
[WhiteElo "2097"]
[BlackElo "2376"]

1. Nf3 {[%clk 00:15:00]} {[%emt 00:00:04]} Nf6 {[%clk 00:15:09]} {[%emt
00:00:02]} 2. c4 {[%clk 00:15:09]} {[%emt 00:00:01]} g6 {[%clk 00:15:12]}
{[%emt 00:00:01]} 3. b3 {[%clk 00:15:13]} {[%emt 00:00:02]} Bg7 {[%clk
00:15:13]} {[%emt 00:00:04]} 4. Bb2 {[%clk 00:15:17]} O-O {[%clk 00:15:15]}
{[%emt 00:00:02]} 5. g3 {[%clk 00:15:20]} {[%emt 00:00:03]} b6 {[%clk
00:15:16]} {[%emt 00:00:05]} 6. Bg2 {[%clk 00:15:24]} {[%emt 00:00:01]} Bb7
{[%clk 00:15:19]} {[%emt 00:00:01]} 7. O-O {[%clk 00:15:26]} {[%emt 00:00:02]}
c5 {[%clk 00:15:19]} {[%emt 00:00:05]} 8. Nc3 {[%clk 00:15:15]} {[%emt
00:00:17]} Nc6 {[%clk 00:15:05]} {[%emt 00:00:19]} 9. d4 {[%clk 00:14:54]}
{[%emt 00:00:26]} Nxd4 {[%clk 00:14:47]} {[%emt 00:00:23]} 10. Nxd4 {[%clk
00:14:58]} {[%emt 00:00:02]} Bxg2 {[%clk 00:14:50]} {[%emt 00:00:01]} 11. Kxg2
{[%clk 00:15:01]} {[%emt 00:00:02]} cxd4 {[%clk 00:14:54]} {[%emt 00:00:02]} 12.
Qxd4 {[%clk 00:15:01]} {[%emt 00:00:05]} Qc8 {[%clk 00:14:52]} {[%emt
00:00:06]} 13. Qd3 {[%clk 00:14:59]} {[%emt 00:00:08]} Qb7+ {[%clk 00:14:46]}
{[%emt 00:00:10]} 14. f3 {[%clk 00:14:45]} {[%emt 00:00:19]} Rad8 {[%clk
00:14:29]} {[%emt 00:00:22]} 15. e4 {[%clk 00:14:38]} {[%emt 00:00:13]} d6
{[%clk 00:14:23]} {[%emt 00:00:10]} 16. Qd2 {[%clk 00:14:26]} {[%emt 00:00:17]}
Rc8 {[%clk 00:14:15]} {[%emt 00:00:12]} 17. Rac1 {[%clk 00:14:22]} {[%emt
00:00:10]} Rfd8 {[%clk 00:14:12]} {[%emt 00:00:08]} 18. Nd5 {[%clk 00:13:52]}
{[%emt 00:00:35]} Nxd5 {[%clk 00:14:03]} {[%emt 00:00:14]} 19. Bxg7 {[%clk
00:13:51]} {[%emt 00:00:07]} Nf4+ {[%clk 00:13:59]} {[%emt 00:00:09]} 20. Qxf4
{[%clk 00:13:52]} {[%emt 00:00:03]} Kxg7 {[%clk 00:14:02]} {[%emt 00:00:02]} 21.
Qg5 {[%clk 00:13:42]} {[%emt 00:00:15]} Rc5 {[%clk 00:13:56]} {[%emt 00:00:10]}
22. Qd2 {[%clk 00:13:43]} {[%emt 00:00:04]} Rdc8 {[%clk 00:13:52]} {[%emt
00:00:09]} 23. a4 {[%clk 00:13:40]} {[%emt 00:00:09]} Kg8 {[%clk 00:13:55]}
{[%emt 00:00:01]} 24. h4 {[%clk 00:13:18]} {[%emt 00:00:27]} a6 {[%clk
00:13:54]} {[%emt 00:00:07]} 25. Rc2 {[%clk 00:12:08]} {[%emt 00:01:15]} b5
{[%clk 00:13:39]} {[%emt 00:00:19]} 26. axb5 {[%clk 00:12:11]} {[%emt
00:00:03]} axb5 {[%clk 00:13:42]} {[%emt 00:00:02]} 27. Rfc1 {[%clk 00:11:45]}
{[%emt 00:00:31]} bxc4 {[%clk 00:13:18]} {[%emt 00:00:28]} 28. bxc4 {[%clk
00:11:40]} {[%emt 00:00:10]} Qa6 {[%clk 00:12:53]} {[%emt 00:00:29]} 29. Ra2
{[%clk 00:10:41]} {[%emt 00:01:05]} Qb7 {[%clk 00:12:31]} {[%emt 00:00:26]} 30.
Rac2 {[%clk 00:10:23]} {[%emt 00:00:24]} Ra8 {[%clk 00:12:31]} {[%emt
00:00:04]} 31. Qd4 {[%clk 00:10:14]} {[%emt 00:00:15]} Ra4 {[%clk 00:12:03]}
{[%emt 00:00:32]} 32. Rb2 {[%clk 00:09:41]} {[%emt 00:00:39]} Qc8 {[%clk
00:12:04]} {[%emt 00:00:03]} 33. Rbc2 {[%clk 00:08:21]} {[%emt 00:01:25]} Ra3
{[%clk 00:12:02]} {[%emt 00:00:07]} 34. Rc3 {[%clk 00:08:20]} {[%emt 00:00:06]}
Ra2+ {[%clk 00:12:02]} {[%emt 00:00:05]} 35. R3c2 {[%clk 00:08:20]} {[%emt
00:00:06]} Rxc4 {[%clk 00:10:09]} {[%emt 00:01:58]} 36. Rxa2 {[%clk 00:08:02]}
{[%emt 00:00:22]} Rxc1 {[%clk 00:10:12]} {[%emt 00:00:02]} 37. Qd2 {[%clk
00:07:30]} {[%emt 00:00:37]} Qc4 {[%clk 00:09:00]} {[%emt 00:01:17]} 38. Qe2
{[%clk 00:06:56]} {[%emt 00:00:39]} Qd4 {[%clk 00:08:39]} {[%emt 00:00:25]} 39.
Qf2 {[%clk 00:06:20]} {[%emt 00:00:42]} Qd1 {[%clk 00:08:16]} {[%emt 00:00:28]}
40. Kh3 {[%clk 00:06:15]} {[%emt 00:00:11]} Qh1+ {[%clk 00:07:30]} {[%emt
00:00:51]} 41. Kg4 {[%clk 00:05:43]} {[%emt 00:00:36]} h5+ {[%clk 00:06:15]}
{[%emt 00:01:20]} 42. Kf4 {[%clk 00:04:13]} {[%emt 00:01:35]} Rc5 {[%clk
00:03:28]} {[%emt 00:02:52]} 43. Qd2 {[%clk 00:04:00]} {[%emt 00:00:19]} Kh7
{[%clk 00:02:40]} {[%emt 00:00:52]} 44. Ra7 {[%clk 00:03:50]} {[%emt 00:00:15]}
e5+ {[%clk 00:01:54]} {[%emt 00:00:51]} 45. Kg5 {[%clk 00:03:34]} {[%emt
00:00:21]} Kg7 {[%clk 00:01:53]} {[%emt 00:00:06]} 46. Rxf7+ {[%clk 00:03:21]}
{[%emt 00:00:18]} Kxf7 {[%clk 00:01:54]} {[%emt 00:00:06]} 47. Qa2+ {[%clk
00:03:23]} {[%emt 00:00:03]} Ke7 {[%clk 00:01:47]} {[%emt 00:00:12]} 48. Qa7+
{[%clk 00:03:19]} {[%emt 00:00:09]} Kd8 {[%clk 00:01:46]} {[%emt 00:00:05]} 49.
Qb8+ {[%clk 00:03:00]} {[%emt 00:00:26]} Kd7 {[%clk 00:01:49]} {[%emt
00:00:02]} 50. Qb7+ {[%clk 00:02:54]} {[%emt 00:00:11]} Rc7 {[%clk 00:01:50]}
{[%emt 00:00:03]} 51. Qb5+ {[%clk 00:02:58]} {[%emt 00:00:01]} Ke7 {[%clk
00:01:52]} {[%emt 00:00:02]} 52. Qb8 {[%clk 00:02:46]} {[%emt 00:00:15]} Rd7
{[%clk 00:01:33]} {[%emt 00:00:27]} 53. Qb3 {[%clk 00:02:14]} {[%emt 00:00:37]}
Qg2 {[%clk 00:01:34]} {[%emt 00:00:02]} 54. g4 {[%clk 00:01:00]} {[%emt
00:01:20]} hxg4 {[%clk 00:01:36]} {[%emt 00:00:04]} 55. fxg4 {[%clk 00:01:03]}
{[%emt 00:00:01]} Qxe4 {[%clk 00:01:37]} {[%emt 00:00:03]} 56. Qg8 {[%clk
00:01:02]} {[%emt 00:00:06]} Qf4+ {[%clk 00:01:36]} {[%emt 00:00:06]} 0-1